Cogmind - Beta 17 @@@ ROGUE MODE // 2026.07.14 @ 14:38:24 // Winter2019/RPGLIKE Player: Gallgagger Result: Self-destructed Performance ------------- Evolutions (1) 500 Regions Visited (6) 1200 Robots Destroyed (1) 5 Value Destroyed (7) 7 Prototype IDs (3) 60 Alien Tech Used (0) 0 Bonus (528) 528 TOTAL SCORE: 2300 Bonus ------- Pacifist 200 Follower Combat Kills 28 Aligned with FarCom 300 Cogmind --------- Core Integrity 282/600 Matter 300/300 Energy 96/100 System Corruption 0% Temperature Cool (0) Movement Flying (40) Location -8/Mines Parts ------- > --- POWER (1) -------- (None) > --- PROPULSION (1) --- Flight Unit > --- UTILITY (2) ------ Experimental Sensor Array > --- WEAPON (1) ------- Longsword +1 > --- INVENTORY (0) ---- (None) Peak State ------------ > --- POWER ------------ (None) > --- PROPULSION ------- Flight Unit > --- UTILITY ---------- Experimental Sensor Array > --- WEAPON ----------- Longsword +1 > --- INVENTORY -------- (None) [Rating: 18] Favorites ----------- Power None Propulsion Flight Unit Hover Unit Hover Unit Flight Unit Flight Unit Utility Experimental Sensor Array Device Experimental Sensor Array Weapon Longsword +1 Slashing Weapon Longsword +1 Build | -11 -10 -10 -9 -9 -9 -8 ------- Run | Yrd Mat Min Mat Min Exi Min Slots Evolved 1 | . . 1 . . . . Power . | . . . . . . . Propulsion . | . . . . . . . Utility 1 | . . 1 . . . . Weapon . | . . . . . . . Parts Attached 5 | . . 3 . 1 1 . Power . | . . . . . . . Engine . | . . . . . . . Core . | . . . . . . . Reactor . | . . . . . . . Propulsion 2 | . . 2 . . . . Treads . | . . . . . . . Leg . | . . . . . . . Wheel . | . . . . . . . Hover 1 | . . 1 . . . . Flight 1 | . . 1 . . . . Utility 2 | . . 1 . 1 . . Device 2 | . . 1 . 1 . . Storage . | . . . . . . . Processor . | . . . . . . . Hackware . | . . . . . . . Protection . | . . . . . . . Artifact . | . . . . . . . Weapon 1 | . . . . . 1 . Energy Gun . | . . . . . . . Energy Cannon . | . . . . . . . Ballistic Gun . | . . . . . . . Ballistic Cannon . | . . . . . . . Launcher . | . . . . . . . Special Weapon . | . . . . . . . Impact Weapon . | . . . . . . . Slashing Weapon 1 | . . . . . 1 . Piercing Weapon . | . . . . . . . Special Melee Weapon . | . . . . . . . Unidentified Prototypes 3 | . . 1 . 1 1 . Parts Lost . | . . . . . . . Power . | . . . . . . . Propulsion . | . . . . . . . Utility . | . . . . . . . Weapon . | . . . . . . . Highest Loss Streak . | . . . . . . . To Critical Strikes . | . . . . . . . Average Backups . | . . . . . . . Power . | . . . . . . . Propulsion . | . . . . . . . Utility . | . . . . . . . Weapon . | . . . . . . . Tool/Special . | . . . . . . . Unused Backups . | . . . . . . . Power . | . . . . . . . Propulsion . | . . . . . . . Utility . | . . . . . . . Weapon . | . . . . . . . Tool/Special . | . . . . . . . Average Slot Usage (%) 32 | . . 16 20 36 50 60 Hover 1 | . . 6 . . . . Flight 16 | . . 10 20 20 20 20 Device 10 | . . . . 16 20 20 Slashing Weapon 2 | . . . . . 10 20 Peak Build Rating 18 | . . 15 1 10 18 18 Average Rating 6 | . . . 1 8 14 18 On Entrance 4 | . . . 1 1 10 18 Avg Prop Armor Cover (%) 26 | . . 26 . . . . Naked Turns 58 | . 17 41 . . . . Heaviest Build 4 | . . . . 1 4 4 Greatest Support 4 | 3 3 4 4 4 4 4 Greatest Overweight (x) . | . . . . . . . Average Overweight (x) . | . . . . . . . Largest Inventory Capacity . | . . . . . . . Average Capacity . | . . . . . . . Most Carried . | . . . . . . . Average Carried . | . . . . . . . Final Capacity . | . . . . . . . Final Carried . | . . . . . . . Class Distribution -------------------- 100% | Mutant Dominant Class ---------------- Mutant | -10/Materials Mutant | -10/Mines Mutant | -9/Materials Mutant | -9/Mines Mutant | -9/Exiles Mutant | -8/Mines Resources | -11 -10 -10 -9 -9 -9 -8 ----------- Run | Yrd Mat Min Mat Min Exi Min Matter Collected 239 | . . 69 . 111 . 59 Remotely . | . . . . . . . Salvage Created 24 | . . . . . . 24 Parts 2 | . . . . . . 2 Haulers Intercepted . | . . . . . . . Recyclers Shooed . | . . . . . . . Parts Field Recycled . | . . . . . . . Retrieved Matter . | . . . . . . . Parts Self-Destructed . | . . . . . . . Prevented . | . . . . . . . Parts Restored . | . . . . . . . Kills | -11 -10 -10 -9 -9 -9 -8 ------- Run | Yrd Mat Min Mat Min Exi Min Combat Hostiles Destroyed . | . . . . . . . Classes Destroyed 1 | . . . . . . 1 Tunneler 1 | . . . . . . 1 Best Kill Streak 1 | . . . . . . 1 Combat Bots Only . | . . . . . . . Max Kills in Single Turn 1 | . . . . . . 1 Gunslinging . | . . . . . . . Exploded . | . . . . . . . Melee . | . . . . . . . Uniques/NPCs Destroyed . | . . . . . . . Combat | -11 -10 -10 -9 -9 -9 -8 -------- Run | Yrd Mat Min Mat Min Exi Min Hostile Shots Fired 45 | . . 14 24 7 . . Missed 19 | . . 3 10 6 . . Hits 26 | . . 11 14 1 . . Projectile 26 | . . 11 14 1 . . Critical Strikes 1 | . . . 1 . . . Damage Taken 329 | . 8 155 160 6 . . Core 318 | . 8 155 149 6 . . Absorbed by Shields . | . . . . . . . Redirected to Core 39 | . . . 39 . . . Core Remaining (%) 86 | 100 . 72 . . . . Volleys Fired . | . . . . . . . Largest . | . . . . . . . Hottest . | . . . . . . . Shots Fired . | . . . . . . . Gun . | . . . . . . . Cannon . | . . . . . . . Launcher . | . . . . . . . Special . | . . . . . . . Kinetic . | . . . . . . . Thermal . | . . . . . . . Explosive . | . . . . . . . Electromagnetic . | . . . . . . . Robot Hit Streak . | . . . . . . . Robot Miss Streak . | . . . . . . . Penetration Max . | . . . . . . . Secondary Targets . | . . . . . . . Shots Hit Robots 1 | . . . . . . 1 Core Hits . | . . . . . . . Critical Kills . | . . . . . . . Critical Parts Destroyed . | . . . . . . . Critical Strikes . | . . . . . . . Melee Attacks 2 | . . . . . 1 1 Impact . | . . . . . . . Slashing 2 | . . . . . 1 1 Piercing . | . . . . . . . Sneak Attacks 1 | . . . . . . 1 Combat Hostiles . | . . . . . . . Follow-up Attacks . | . . . . . . . Damage Inflicted 129 | . 18 1 . . . 110 Guns . | . . . . . . . Cannons . | . . . . . . . Explosions . | . . . . . . . Melee 110 | . . . . . . 110 Ramming 19 | . 18 1 . . . . Kinetic . | . . . . . . . Thermal . | . . . . . . . Explosive . | . . . . . . . Electromagnetic . | . . . . . . . Impact . | . . . . . . . Slashing 110 | . . . . . . 110 Piercing . | . . . . . . . Highest Corruption . | . . . . . . . Average Corruption . | . . . . . . . Corruption Purged . | . . . . . . . Corruption Blocked . | . . . . . . . Overload Shots . | . . . . . . . Overflow Damage 90 | . . . . . . 90 Projectiles . | . . . . . . . Explosions . | . . . . . . . Melee 90 | . . . . . . 90 Knockbacks . | . . . . . . . Impact . | . . . . . . . Kinetic . | . . . . . . . Secondary . | . . . . . . . Self-Inflicted Damage 8 | . 8 . . . . . Shots . | . . . . . . . Rammed 3 | . 2 1 . . . . Targets Rammed 3 | . 2 1 . . . . Kicked . | . . . . . . . Crushed . | . . . . . . . Highest Temperature 5 | . . . 5 . . . Average Temperature 5 | . . . 5 . . . Received Heat Transfer 168 | . . 87 81 . . . Siege Activations . | . . . . . . . Martial Activations . | . . . . . . . Shielding Activations . | . . . . . . . Robots Disrupted . | . . . . . . . Combat Hostiles . | . . . . . . . Robots Corrupted . | . . . . . . . Combat Hostiles . | . . . . . . . Parts Fried . | . . . . . . . Impact Corruptions . | . . . . . . . Robots Melted . | . . . . . . . Combat Hostiles . | . . . . . . . Parts Melted . | . . . . . . . Heat Transferred . | . . . . . . . Parts Sabotaged . | . . . . . . . Parts Stolen . | . . . . . . . Parts Stripped . | . . . . . . . Power Chain Reactions . | . . . . . . . Alert | -11 -10 -10 -9 -9 -9 -8 ------- Run | Yrd Mat Min Mat Min Exi Min Maximum Alert Level . | . . . . . . . Low Security (%) 100 | 100 100 100 100 100 . 100 Level 1 . | . . . . . . . Level 2 . | . . . . . . . Level 3 . | . . . . . . . Level 4 . | . . . . . . . Level 5 . | . . . . . . . High Security . | . . . . . . . Max Security . | . . . . . . . Peak Influence 108 | . 8 30 38 108 . 5 Initial 10 | . . 3 . 10 . . Average 19 | . 6 4 8 34 . . Influence Increases 210 | . 8 30 38 129 . 5 Destroy 0b10 Robot/C 80 | . . . . 80 . . Destroy 0b10 Robot/NC 5 | . . . . . . 5 Destroy Leader 10 | . . . . 10 . . Allied During Kill 9 | . . . . 9 . . Successful Hack 16 | . 8 . 8 . . . Lose Combat Pursuer 90 | . . 30 30 30 . . Influence Decreases 205 | . . 38 10 136 21 . Entered New Map 44 | . . 5 . 18 21 . Time Decay 141 | . . 33 10 98 . . Lost Ally 20 | . . . . 20 . . Squads Dispatched 3 | . . . 3 . . . Investigation 2 | . . . 2 . . . Extermination . | . . . . . . . Reinforcement 1 | . . . 1 . . . Assault . | . . . . . . . Garrison . | . . . . . . . Intercept . | . . . . . . . Searches Triggered . | . . . . . . . Construction Impeded . | . . . . . . . Haulers Reinforced . | . . . . . . . Active Scanning Responses . | . . . . . . . Cargo Convoy Interrupts . | . . . . . . . Stealth | -11 -10 -10 -9 -9 -9 -8 --------- Run | Yrd Mat Min Mat Min Exi Min Distress Signals . | . . . . . . . Communications Jammed . | . . . . . . . Distress Signals . | . . . . . . . Times Spotted 27 | . . 4 16 7 . . Peak Tracking Total 14 | . . 2 14 4 9 . Tactical Retreats 3 | . . 1 1 1 . . Traps | -11 -10 -10 -9 -9 -9 -8 ------- Run | Yrd Mat Min Mat Min Exi Min Traps Triggered . | . . . . . . . Indirectly . | . . . . . . . Trap Hack Attempts . | . . . . . . . Triggered . | . . . . . . . Disarmed . | . . . . . . . Reprogrammed . | . . . . . . . Reused . | . . . . . . . Traps Extracted . | . . . . . . . Installed . | . . . . . . . Triggered . | . . . . . . . Machines | -11 -10 -10 -9 -9 -9 -8 ---------- Run | Yrd Mat Min Mat Min Exi Min Machines Disabled 1 | . . . . . 1 . Max in Single Turn 1 | . . . . . 1 . Machines Repaired . | . . . . . . . Machines Dismantled . | . . . . . . . Machines Sabotaged . | . . . . . . . Overloaded Fab Kills . | . . . . . . . Hacking | -11 -10 -10 -9 -9 -9 -8 --------- Run | Yrd Mat Min Mat Min Exi Min Machines Accessed 5 | . 1 1 3 . . . Terminals 4 | . 1 . 3 . . . Fabricators . | . . . . . . . Repair Stations . | . . . . . . . Recycling Units . | . . . . . . . Scanalyzers . | . . . . . . . Garrison Access . | . . . . . . . Total Hacks 13 | . 3 1 9 . . . Successful 3 | . 1 1 1 . . . Failed 10 | . 2 . 8 . . . Catastrophic 5 | . 1 . 4 . . . Database Lockouts . | . . . . . . . Manual 13 | . 3 . 9 . 1 . Terminals 12 | . 3 . 9 . . . Fabricators . | . . . . . . . Repair Stations . | . . . . . . . Recycling Units . | . . . . . . . Scanalyzers . | . . . . . . . Garrison Access . | . . . . . . . Terminal Hacks 3 | . 1 1 1 . . . Open Door 1 | . . 1 . . . . Branch Access Points 2 | . 1 . 1 . . . Fabricator Hacks . | . . . . . . . Repair Station Hacks . | . . . . . . . Recycling Unit Hacks . | . . . . . . . Scanalyzer . | . . . . . . . Garrison Access Hacks . | . . . . . . . Unauthorized Hacks . | . . . . . . . Terminals . | . . . . . . . Fabricators . | . . . . . . . Repair Stations . | . . . . . . . Recycling Units . | . . . . . . . Scanalyzers . | . . . . . . . Garrison Access . | . . . . . . . Data Cores Recovered . | . . . . . . . Used . | . . . . . . . Hacking Detections 4 | . 1 . 3 . . . Full Trace Events 2 | . . . 2 . . . Feedback Events . | . . . . . . . Feedback Blocked . | . . . . . . . Robot Schematics Acquired . | . . . . . . . Robots Built . | . . . . . . . Authchips . | . . . . . . . Time . | . . . . . . . Total Robot Build Rating . | . . . . . . . Part Schematics Acquired . | . . . . . . . Parts Built . | . . . . . . . Authchips . | . . . . . . . Time . | . . . . . . . Total Part Build Rating . | . . . . . . . Part Studies Acquired . | . . . . . . . Parts Repaired . | . . . . . . . Time . | . . . . . . . Parts Recycled . | . . . . . . . Recycled Matter . | . . . . . . . Retrieved Matter . | . . . . . . . Retrieved Components . | . . . . . . . Parts Scanalyzed . | . . . . . . . Part Schematics Acquired . | . . . . . . . Parts Damaged . | . . . . . . . Bothacking | -11 -10 -10 -9 -9 -9 -8 ------------ Run | Yrd Mat Min Mat Min Exi Min Used RIF Installer . | . . . . . . . Robots Hacked . | . . . . . . . Non-combat . | . . . . . . . Combat . | . . . . . . . Robot Hacks Applied . | . . . . . . . Relay Couplers Released . | . . . . . . . Fabnet Peak Effective % . | . . . . . . . Robots Rewired . | . . . . . . . Allies Hacked . | . . . . . . . Hacks Repelled . | . . . . . . . Allies | -11 -10 -10 -9 -9 -9 -8 -------- Run | Yrd Mat Min Mat Min Exi Min Total Allies 2 | . . . . 2 . . Largest Group 2 | . . . . 2 . . Highest-Rated Group 45 | . . . . 45 . . Highest-Rated Ally 31 | . . . . 31 . . Total Orders . | . . . . . . . Ally Attacks 11 | . . . . 11 . . Total Damage 148 | . . . . 148 . . Kills 4 | . . . . 4 . . Allies Corrupted . | . . . . . . . Allies Melted . | . . . . . . . Intel | -11 -10 -10 -9 -9 -9 -8 ------- Run | Yrd Mat Min Mat Min Exi Min Active Infowar (turns) 380 | . . . . 247 102 31 Sensors 380 | . . . . 247 102 31 Robot Analysis Total . | . . . . . . . Derelict Logs Recovered 1 | . . 1 . . . . Drone Launches . | . . . . . . . Drone Recoveries . | . . . . . . . Exploration | -11 -10 -10 -9 -9 -9 -8 ------------- Run | Yrd Mat Min Mat Min Exi Min Turns Passed 686 | 9 17 178 61 288 102 31 Spaces Moved 1240 | 18 29 375 153 348 246 71 Core 211 | 18 29 164 . . . . Treads . | . . . . . . . Legs . | . . . . . . . Wheels . | . . . . . . . Hover . | . . . . . . . Flight 1029 | . . 211 153 348 246 71 Fastest Speed 40 | 50 50 40 40 40 40 40 Average Speed 41 | 50 50 44 40 40 40 40 Slowest Speed 50 | 50 50 50 40 40 40 40 Overloaded Moves . | . . . . . . . Propulsion Burnouts . | . . . . . . . Robots Hopped 21 | . . 9 7 5 . . Potential Cave-ins . | . . . . . . . Cave-ins Triggered . | . . . . . . . Exploration Rate (%) 40 | 3 12 78 31 73 62 26 Regions Visited 6 Branch Regions 4 Pre-discovered Areas . | . . . . . . . Known Exits Taken 2 | . 1 . 1 . . . Unknown Exits Taken 4 | 1 . 1 . 1 1 . Scrap Searched 5 | . . 3 . 1 . 1 Spaces Dug . | . . . . . . . Terrain Destroyed . | . . . . . . . Melee . | . . . . . . . Projectile . | . . . . . . . AOE . | . . . . . . . Terrain Rammed . | . . . . . . . Walls Destroyed . | . . . . . . . Machines Disabled . | . . . . . . . Actions | -11 -10 -10 -9 -9 -9 -8 --------- Run | Yrd Mat Min Mat Min Exi Min Total 1376 | 17 30 375 145 490 247 72 Wait 152 | . . 5 . 147 . . Move 1193 | 17 28 357 138 337 245 71 Hop 20 | . . 8 7 5 . . Pick Up . | . . . . . . . Fast Attach 4 | . . 2 . 1 1 . Attach . | . . . . . . . Detach . | . . . . . . . Swap 1 | . . 1 . . . . Drop 1 | . . 1 . . . . Fire . | . . . . . . . Melee 2 | . . . . . 1 1 Ram 3 | . 2 1 . . . . Kick . | . . . . . . . Crush . | . . . . . . . Escape Stasis . | . . . . . . . Rewire . | . . . . . . . Trap . | . . . . . . . Miscellaneous . | . . . . . . . Route ------- -11/Scrapyard -10/Materials (discovered 2 exits: *Min x2) -10/Mines (discovered 2 exits: *Mat / Sub) -9/Materials (discovered 2 exits: *Min x2) -9/Mines (discovered 2 exits: [*Mat] / *Exi) -9/Exiles -8/Mines History --------- Turn | Location | Event 3 | -11/Scrapyard | Discovered new exit (range 15) 10 | -11/Scrapyard | Entered Materials 13 | -10/Materials | Identified exit to Mines 27 | -10/Materials | Entered Mines 74 | -10/Mines | Identified exit to Subcaves 141 | -10/Mines | Found the Drone Emporium 142 | -10/Mines | Upgraded with Utility slot (x1) 143 | -10/Mines | Found Prototype Device 143 | -10/Mines | Identified Decoy Drone Bay 190 | -10/Mines | Discovered new exit (range 7) 205 | -10/Mines | Entered Materials 207 | -9/Materials | Reached level 2 255 | -9/Materials | Identified exit to Mines 262 | -9/Materials | Core integrity fell below 50% 266 | -9/Materials | Entered Mines 289 | -9/Mines | Assembled infested the area 296 | -9/Mines | Reached level 3 307 | -9/Mines | Found a damaged Exp. Sensor Array with a note attached 307 | -9/Mines | Found Prototype Device 307 | -9/Mines | Identified Exp. Sensor Array 328 | -9/Mines | Build established: Mutant 533 | -9/Mines | Discovered new exit (range 9) 552 | -9/Mines | Discovered new exit (range 5) 554 | -9/Mines | Entered Exiles 565 | -9/Exiles | Met 8R-AWN 571 | -9/Exiles | Met EX-HEX 582 | -9/Exiles | Met EX-BIN 587 | -9/Exiles | Aligned with FarCom system 588 | -9/Exiles | Given EX-Vault access code 597 | -9/Exiles | Opened EX-Vault 599 | -9/Exiles | Found Prototype Slashing Weapon 599 | -9/Exiles | Identified Longsword +1 608 | -9/Exiles | Warned to stay clear of 0b10 Research branches 622 | -9/Exiles | Met EX-DEC 641 | -9/Exiles | Attacked by the Exiles 653 | -9/Exiles | Discovered new exit (range 10) 656 | -9/Exiles | Left Exiles lab with Longsword +1 656 | -9/Exiles | Entered Mines 658 | -8/Mines | Found DCF Scrap (12 items) 687 | -8/Mines | Self-destructed Last Messages --------------- 00653_ EXIT=FOUND LOCATION=UNKNOWN GOAL=ESCAPE 00658_ Searching scrap... 00658_ Found Deuterium Engine. 00658_ Found Nuclear Core. 00658_ Found Deuterium Engine. 00658_ Found Cesium-ion Thruster. 00658_ Found Airjet. 00658_ Found Cesium-ion Thruster. 00658_ Found Cryofiber Web. 00658_ Found Disposable Heat Sink. 00658_ Found Imp. Light Cannon. 00658_ Found Katana. 00658_ Found 103 Matter. A note is attached: "With love, from the DCF." 00659_ Acquired 59 matter. 00685_ Sneak attack on T-07 Excavator. 00685_ Destroyed Seismic Detector. 00685_ T-07 Excavator destroyed. Map ----- +----------------------------------------------------+ | ?????????????????????????????????????????????????? | | ?????????????????????????????????????????????????? | | ?????????????????????????????????????????????????? | | ?????????????????????????????????????????????????? | | ?????????????????????????????????????????????????? | | ?????????????????????????????????????????????????? | | ?????????????????????????????????????????????????? | | ?????????????????????????????????????????????????? | | ?????????????????????????????????????????????????? | | ?????????????????????????????????????????????????? | | ?????????????????????????????????????????????????? | | ?????????????????????????????????????????????????? | | ?????????????????????????????????????????????????? | | ?????????????????????????????????????????????????? | | ?????????????????????????????????????????????????? | | ?????????????????????????????????????????????????? | | ???????????????????????????????? ????????????????? | | ??????????????????????????????? #???????????????? | | ????????????????????#?????????? #???????????????? | | ?????????????????#### ????????? ##??????????????? | | ?????????????????? ????????# ##?????????????? | | ???????????????????# ???????# ##????????####? | | ???????????????????# #??????# ##??????? #? | | ???????????????????# ####??# #???????# #? | | ????????????????????# *%##?# #???????# #? | | ?????????????????????# @| ### #???????# #? | | ?????????????????????## #???????# #? | | ??????????????????????## #???????# #? | | ????????????????# ###### #???????# #? | | ????????????????# ##???????# ## | | ????????????????# ? ##???????# # | | ????????????? ###### ###????## | | ?????????????#?????????## ## ##???# | | ????????????????????????####### ##### | | ??????????????????????????????# ## # | | ??????????????????????????????## # | | ???????????????????????????????## # | | ????????????????????????????????## ## ## | | ?????????????????????????????????## #### ##? | | ??????????????????????????????????####??## #?? | | ?????????????????????????????????????????## ##?? | | ??????????????????????????????????????????#####??? | | ?????????????????????????????????????????????????? | | ?????????????????????????????????????????????????? | | ?????????????????????????????????????????????????? | | ?????????????????????????????????????????????????? | | ?????????????????????????????????????????????????? | | ?????????????????????????????????????????????????? | | ?????????????????????????????????????????????????? | | ?????????????????????????????????????????????????? | +----------------------------------------------------+ Best States ------------- Heat Dissipation 25 Energy Generation 5 Energy Capacity 100 Matter Stores 300 Matter Capacity 300 Sight Range 16 Robot Scan Range 20 Terrain Scan Density 10 Evasion (%) 62 Item Schematics ----------------- None Robot Schematics ------------------ None Fabricated ------------ Nothing Repaired ---------- Nothing Studied --------- None Alien Tech Used ----------------- None Achievements -------------- None Challenges ------------ None RPGLIKE | -11 -10 -10 -9 -9 -9 -8 --------- Run | Yrd Mat Min Mat Min Exi Min Levels Raised 2 | . . . 1 1 . . XP Earned 6992 | 3000 40 600 1540 962 350 500 XP Spent 500 | . . 500 . . . . Upgrades 1 | . . 1 . . . . Utility Slot 1 | . . 1 . . . . Protomatter Created . | . . . . . . . Protomatter Decayed 92 | . . . . 92 . . Game ------ Seed ArmageddonNodeNanovents Manual? 0 Play Time 00:04:10 Cumulative 661.5 hours Start 2026.07.14 @ 14:34:27 End 2026.07.14 @ 14:38:24 Sessions 1 Manual Loads 0 Difficulty Rogue Special Mode Winter2019/RPGLIKE Game No. 281 Rogue 127 Adventurer 154 Explorer 0 Win Type - Total 22 Types 4/5/4/3/2/1/0/1/1/1 Lore% 95 Gallery% 88 Achievement% 68 Wizard Run 0 Options --------- Layout 0 ASCII 0 Keyboard 0 Movement Numpad Keybinds 0 Fullscreen 2 Font 18/SmallcapsGlow Map View 76x50 Zoom Use 0% Tactical HUD 1 Map Filters NONE Filters NONE Steam 1 RUN: 9ffb6333-6b61-4511-afaa-74b85ef1a88d